bitfinex-derivatives/quotes_BTCF0:USTF0_20241015
["timestamp","ask_amount","ask_price","bid_price","bid_amount"]
[1729000775821,0.00051788,67720.0,67719.0,0.5164072]
[1729000776024,1e-08,67720.0,67719.0,0.5204072]
[1729000776225,1e-08,67720.0,67719.0,0.9104072]
[1729000776731,1e-08,67720.0,67719.0,0.68854004]
[1729000776916,1e-08,67720.0,67719.0,0.69154004]
[1729000777124,1e-08,67720.0,67719.0,0.080845]
[1729000777322,0.07384401,67720.0,67719.0,0.007]
[1729000777921,0.07384401,67720.0,67719.0,0.397]
[1729000778118,1e-08,67720.0,67719.0,1.05540756]
[1729000778526,1e-08,67720.0,67719.0,0.826645]
[1729000778727,0.07384401,67720.0,67719.0,0.396]
[1729000779024,0.434644,67720.0,67719.0,0.006]
[1729000779229,1.477644,67720.0,67719.0,0.006]
[1729000779527,1.116844,67720.0,67719.0,0.006]
[1729000779932,0.516844,67720.0,67719.0,0.006]
[1729000780119,1.116844,67720.0,67719.0,0.006]
[1729000780320,1.043,67720.0,67719.0,0.003]
[1729000780523,0.52236,67728.0,67723.0,0.07384]
[1729000780524,0.07384,67724.0,67723.0,0.07384]
[1729000780827,0.07384,67724.0,67723.0,0.0004]
[1729000781025,0.5168,67724.0,67723.0,0.0004]
[1729000781231,1.1168,67724.0,67723.0,0.0004]
[1729000781432,0.00076,67728.0,67723.0,0.3904]
[1729000781724,4.138e-05,67724.0,67723.0,0.464241]
[1729000782133,0.00304138,67724.0,67723.0,0.464241]
[1729000782322,0.07688138,67724.0,67723.0,0.0004]
[1729000782521,0.00304138,67724.0,67723.0,0.074241]
[1729000782727,0.00304138,67724.0,67723.0,0.435041]
[1729000783521,0.00104138,67724.0,67723.0,0.435041]
[1729000783721,0.00104138,67724.0,67723.0,0.436041]
[1729000784330,0.073825,67738.0,67727.0,0.39]
[1729000784536,0.073825,67738.0,67737.0,0.0004]
[1729000784721,0.073825,67738.0,67737.0,0.074225]
[1729000785539,0.0008,67741.0,67737.0,0.0004]
[1729000785727,0.073824,67738.0,67737.0,0.0004]
[1729000786033,0.073824,67738.0,67737.0,0.0014]
[1729000786231,0.073835,67728.0,67727.0,0.3608]
[1729000786829,0.074235,67728.0,67727.0,0.3608]
[1729000787222,0.074235,67728.0,67727.0,0.3618]
[1729000787637,0.07384,67724.0,67723.0,0.0004]
[1729000787929,0.07424,67724.0,67723.0,0.0004]
[1729000789026,0.07624,67724.0,67723.0,0.0004]
[1729000789627,0.07624,67724.0,67709.0,0.36192]
[1729000789628,0.073854,67712.0,67709.0,0.36192]
[1729000789835,0.073844,67720.0,67718.0,0.073846]
[1729000790137,0.073846,67720.0,67719.0,0.074245]
[1729000790333,0.00356,67724.0,67719.0,0.0004]
[1729000790638,0.073847,67717.0,67716.0,0.3608]
[1729000790822,0.074247,67717.0,67716.0,0.3608]
[1729000791019,0.073856,67709.0,67708.0,0.26]
[1729000791225,0.074256,67709.0,67708.0,0.26]
[1729000791421,0.074256,67709.0,67708.0,0.22016044]
[1729000791621,0.074256,67709.0,67703.0,0.982]
[1729000791622,0.07386,67705.0,67703.0,0.722]
[1729000791827,0.07386,67705.0,67703.0,0.982]
[1729000791828,0.0004,67705.0,67703.0,0.982]
[1729000792028,0.0004,67705.0,67704.0,0.074261]
[1729000792246,0.33426,67705.0,67704.0,0.0004]
[1729000792534,1.73818,67705.0,67693.0,0.3612]
[1729000792741,0.073868,67699.0,67693.0,0.3612]
[1729000792927,0.0004,67704.0,67693.0,0.435073]
[1729000792928,0.0004,67694.0,67693.0,0.435073]
[1729000793129,0.0004,67694.0,67646.0,0.3608]
[1729000793130,0.3612,67694.0,67646.0,0.3608]
[1729000793332,0.3612,67694.0,67652.0,0.073917]
[1729000793333,0.073915,67655.0,67652.0,0.073917]
[1729000793628,0.26,67672.0,67660.0,0.22301539]
[1729000793825,0.073897,67671.0,67663.0,0.3608]
[1729000794027,0.3608,67674.0,67661.0,0.22301539]
[1729000794236,0.074307,67662.0,67661.0,0.22301539]
[1729000794430,0.074307,67662.0,67661.0,0.3608]
[1729000794628,0.074307,67662.0,67652.0,0.3608]
[1729000794629,0.07391,67660.0,67658.0,0.2205489]
[1729000794931,0.07391,67660.0,67652.0,0.3608]
[1729000794932,0.0004,67659.0,67657.0,0.2205489]
[1729000795137,0.0004,67659.0,67658.0,0.3608]
[1729000795338,0.0004,67659.0,67658.0,0.434712]
[1729000795535,0.0004,67659.0,67658.0,0.65559027]
[1729000795931,0.0004,67659.0,67658.0,0.65759027]
[1729000796435,0.0004,67659.0,67658.0,0.29679027]
[1729000796637,0.0004,67659.0,67658.0,0.65759027]
[1729000797026,0.3608,67681.0,67659.0,0.4434]
[1729000797342,0.3904,67691.0,67690.0,0.073877]
[1729000797343,0.0004,67691.0,67690.0,0.073877]
[1729000797635,0.0004,67691.0,67690.0,0.074277]
[1729000798237,0.3904,67691.0,67690.0,0.074277]
[1729000799137,0.3904,67691.0,67690.0,0.0004]
[1729000799341,0.0024,67691.0,67690.0,0.65894222]
[1729000799543,0.0164,67691.0,67690.0,0.65994222]
[1729000800433,0.0008,67694.0,67690.0,0.65994222]
[1729000800637,0.0008,67694.0,67693.0,0.074273]
[1729000800834,0.0004,67704.0,67693.0,0.0004]
[1729000801040,0.0004,67704.0,67703.0,0.074263]
[1729000801530,0.0004,67704.0,67703.0,0.22226785]
[1729000801728,0.074261,67704.0,67703.0,0.22226785]
[1729000801933,0.073872,67694.0,67693.0,0.0004]
[1729000802131,0.073872,67694.0,67690.0,0.0014]
[1729000802132,0.463876,67691.0,67690.0,0.0024]
[1729000802339,0.463876,67691.0,67680.0,0.0004]
[1729000802340,0.073877,67690.0,67680.0,0.0004]
[1729000802641,0.3608,67689.0,67681.0,0.22173397]
[1729000803032,0.0108,67704.0,67684.0,1.1116]
[1729000803237,0.0108,67704.0,67682.0,0.82029967]
[1729000803238,0.0108,67704.0,67703.0,0.464263]
[1729000803537,0.073842,67722.0,67708.0,0.073857]
[1729000803742,0.3616,67724.0,67716.0,0.0004]
[1729000803940,0.39,67722.0,67716.0,0.0004]
[1729000804153,0.0008,67724.0,67716.0,0.074248]
[1729000804338,0.0008,67724.0,67716.0,1.10072846]
[1729000804539,0.0008,67724.0,67719.0,0.073845]
[1729000804850,0.0004,67728.0,67723.0,0.073841]
[1729000805036,0.0004,67728.0,67719.0,1.13230787]
[1729000805037,0.0004,67741.0,67737.0,0.39]
[1729000805240,0.0004,67741.0,67740.0,0.7216]
[1729000805437,0.0008,67748.0,67740.0,0.7216]
[1729000805642,0.0004,67753.0,67747.0,0.7508]
[1729000805840,0.39,67750.0,67747.0,0.3612]
[1729000806037,0.3608,67748.0,67747.0,0.0004]
[1729000806232,0.073821,67741.0,67740.0,0.0004]
[1729000806438,0.073829,67734.0,67720.0,0.434643]
[1729000806638,0.0004,67728.0,67720.0,0.3608]
[1729000806839,0.0004,67728.0,67727.0,0.3612]
[1729000807254,0.0008,67741.0,67739.0,0.073823]
[1729000807443,0.0008,67741.0,67740.0,1.112]
[1729000807644,0.0004,67748.0,67747.0,0.073815]
[1729000807839,0.0004,67748.0,67747.0,0.3622]
[1729000808036,0.0004,67748.0,67747.0,0.58233657]
[1729000808241,0.0004,67748.0,67747.0,0.3622]
[1729000808550,0.0008,67760.0,67747.0,2.0150883]
[1729000808739,0.0008,67760.0,67759.0,0.0004]
[1729000808941,0.0008,67760.0,67759.0,0.074202]
[1729000809140,0.0008,67760.0,67759.0,1.3380103]
[1729000809451,0.0008,67760.0,67759.0,0.2952503]
[1729000809635,0.0008,67760.0,67759.0,0.074202]
[1729000810138,0.0008,67760.0,67759.0,0.0004]
[1729000810339,0.0008,67760.0,67759.0,0.9612]
[1729000810544,0.0008,67772.0,67768.0,0.39]
[1729000810737,0.0008,67772.0,67771.0,0.0004]
[1729000810938,0.0008,67772.0,67759.0,0.583025]
[1729000810939,0.073796,67764.0,67759.0,0.0014]
[1729000811148,0.3608,67766.0,67760.0,0.0738]
[1729000811447,0.0004,67760.0,67759.0,0.0024]
[1729000811638,0.0004,67760.0,67759.0,0.0014]
[1729000811639,0.0008,67760.0,67759.0,0.0014]
[1729000812437,0.0022,67772.0,67766.0,0.073794]
[1729000812637,0.0022,67772.0,67771.0,0.3612]
[1729000812849,0.0004,67789.0,67771.0,0.3612]
[1729000813037,0.0004,67789.0,67777.0,0.3608]
[1729000813238,0.073774,67784.0,67783.0,0.3608]
[1729000813634,0.463774,67784.0,67783.0,0.3608]
[1729000813841,0.073781,67778.0,67777.0,0.0004]
[1729000814048,0.073799,67761.0,67760.0,0.3608]
[1729000814351,0.0004,67761.0,67760.0,0.7216]
[1729000814648,0.0004,67761.0,67760.0,0.58129776]
[1729000814852,0.0004,67761.0,67749.0,0.3608]
[1729000814853,0.0738,67760.0,67744.0,0.3608]
[1729000815045,0.073806,67755.0,67754.0,0.3608]
[1729000815241,0.0004,67761.0,67754.0,0.3608]
[1729000815242,0.0004,67760.0,67754.0,0.3608]
[1729000815448,0.0004,67760.0,67759.0,0.0004]
[1729000815644,0.435,67760.0,67759.0,0.0004]
[1729000815948,1.47776,67760.0,67759.0,0.0004]
[1729000816151,1.47776,67760.0,67737.0,0.3608]
[1729000816152,0.073813,67748.0,67737.0,0.3608]
[1729000816446,0.074213,67748.0,67739.0,0.073823]
[1729000817037,0.074213,67748.0,67737.0,0.3608]
[1729000817550,0.074213,67748.0,67730.0,0.3608]
[1729000817551,1.117053,67748.0,67730.0,0.3608]
[1729000817759,0.824621,67741.0,67723.0,0.07384]
[1729000818051,0.824621,67741.0,67720.0,0.3608]
[1729000818052,0.3612,67741.0,67727.0,0.3904]
[1729000818444,0.0004,67728.0,67727.0,0.0004]
[1729000818845,0.0004,67728.0,67727.0,0.22049955]
[1729000819450,0.0004,67728.0,67727.0,0.58129955]
[1729000819643,0.0004,67728.0,67727.0,0.58929955]
[1729000819843,0.0004,67728.0,67727.0,0.22849955]
[1729000820847,0.0004,67728.0,67727.0,0.59729955]
[1729000821051,0.0004,67728.0,67727.0,0.23649955]
[1729000821247,0.8604,67728.0,67727.0,0.0164]
[1729000821450,0.073844,67720.0,67719.0,0.0004]
[1729000821949,0.074244,67720.0,67719.0,0.0004]
[1729000822150,0.0004,67720.0,67719.0,0.0004]
[1729000822549,0.0004,67720.0,67719.0,0.29718699]
[1729000823051,0.074636,67728.0,67719.0,1.34018699]
[1729000823052,0.0008,67728.0,67719.0,1.34018699]
[1729000823361,0.073803,67758.0,67727.0,0.8812]
[1729000823550,0.2754,67761.0,67747.0,0.434615]
[1729000823755,0.3608,67758.0,67747.0,0.435015]
[1729000824053,0.073803,67758.0,67747.0,0.65560222]
[1729000824256,0.0004,67761.0,67747.0,2.05924222]
[1729000824548,0.0004,67761.0,67759.0,0.2604]
[1729000824961,0.0004,67761.0,67759.0,0.55553078]
[1729000825249,0.3608,67784.0,67759.0,0.55553078]
[1729000825250,0.3608,67791.0,67770.0,0.073789]
[1729000825457,0.2604,67790.0,67775.0,0.26]
[1729000825845,0.0004,67790.0,67777.0,0.0004]
[1729000826061,0.07378,67779.0,67777.0,0.0004]
[1729000826254,0.07378,67779.0,67777.0,0.22063083]
[1729000826550,0.0108,67778.0,67777.0,0.22063083]
[1729000826960,0.4008,67778.0,67777.0,0.22063083]
[1729000827146,1.44344,67778.0,67777.0,0.0004]
[1729000827344,0.84644,67778.0,67777.0,0.0014]
[1729000827757,0.0138,67778.0,67777.0,0.0014]
[1729000828353,1.510221,67778.0,67777.0,0.0014]
[1729000828558,0.073787,67772.0,67771.0,0.0004]
[1729000828750,0.39,67772.0,67771.0,0.0004]
[1729000829057,1.506867,67772.0,67771.0,0.0004]
[1729000829560,0.074187,67772.0,67771.0,0.0004]
[1729000829767,0.0004,67772.0,67757.0,0.3416]
[1729000829950,0.0004,67772.0,67759.0,0.073802]
[1729000829951,0.0004,67760.0,67759.0,0.073802]
[1729000830457,0.0174,67772.0,67771.0,0.074788]
[1729000830756,0.0174,67772.0,67771.0,0.22202254]
[1729000831052,0.0144,67772.0,67771.0,0.22102254]
[1729000831253,0.0144,67772.0,67771.0,0.29481054]
[1729000831646,0.0144,67772.0,67771.0,0.22102254]
[1729000832046,0.0174,67772.0,67771.0,0.22202254]
[1729000832350,0.091187,67772.0,67771.0,0.0014]
[1729000832553,0.091187,67772.0,67771.0,0.22217573]
[1729000832554,0.077187,67772.0,67771.0,0.22217573]
[1729000832753,0.088187,67772.0,67771.0,0.22217573]
[1729000833362,0.0144,67772.0,67771.0,0.29596373]
[1729000833560,0.0034,67772.0,67771.0,0.29696373]
[1729000833755,0.0144,67772.0,67771.0,0.22317573]
[1729000834056,0.0144,67772.0,67771.0,1.33964373]
[1729000834259,0.0144,67772.0,67771.0,0.29696373]
[1729000834462,0.0012,67778.0,67771.0,1.70044373]
[1729000834762,0.00261413,67789.0,67788.0,0.07377]
[1729000834763,0.0004,67789.0,67788.0,0.07377]
[1729000834960,0.3608,67798.0,67788.0,0.3612]
[1729000835162,0.3608,67798.0,67789.0,0.516729]
[1729000835354,0.39,67809.0,67798.0,0.073759]
[1729000835355,0.3608,67805.0,67798.0,0.073759]
[1729000835551,0.3608,67818.0,67811.0,0.073745]
[1729000835860,0.073737,67818.0,67817.0,0.3612]
[1729000836251,0.3608,67831.0,67817.0,1.6249628]
[1729000836457,0.073728,67827.0,67826.0,0.39]
[1729000836856,0.073728,67827.0,67826.0,0.22242276]
[1729000837051,0.3608,67831.0,67826.0,0.61242276]
[1729000837362,0.3608,67831.0,67821.0,0.22242276]
[1729000837363,0.073733,67822.0,67821.0,0.22242276]
[1729000837660,0.0004,67822.0,67821.0,0.61118295]
[1729000837960,0.074133,67822.0,67821.0,0.22118295]
[1729000838151,0.074133,67822.0,67817.0,0.0014]
[1729000838152,0.0004,67822.0,67817.0,0.0004]
[1729000838352,0.074137,67818.0,67817.0,0.0004]
[1729000838750,0.0004,67818.0,67817.0,0.22223076]
[1729000839860,0.3612,67818.0,67817.0,0.22323076]
[1729000840161,0.434937,67818.0,67817.0,0.22323076]
[1729000840352,0.3612,67818.0,67817.0,0.22323076]
[1729000840557,0.434937,67818.0,67817.0,0.22323076]
[1729000840857,1.034937,67818.0,67799.0,0.39]
[1729000841059,0.3608,67807.0,67799.0,0.39]
[1729000841359,0.3608,67809.0,67805.0,0.22265008]
[1729000841560,0.073757,67800.0,67799.0,0.22265008]
[1729000841769,0.073758,67799.0,67798.0,0.0004]
[1729000841960,0.074158,67799.0,67798.0,0.0004]
[1729000842855,0.0004,67799.0,67798.0,0.0004]
[1729000843061,0.0004,67799.0,67798.0,0.89426197]
[1729000843560,0.0004,67799.0,67798.0,0.29626197]
[1729000843863,0.0014,67799.0,67798.0,0.29626197]
[1729000844062,0.073758,67799.0,67798.0,0.22250297]
[1729000844264,0.3608,67809.0,67798.0,0.22250297]
[1729000844265,0.0008,67818.0,67817.0,0.073738]
[1729000844566,0.0008,67818.0,67817.0,0.65660592]
[1729000845169,0.0008,67818.0,67817.0,0.22206792]
[1729000845170,0.074537,67818.0,67817.0,0.22206792]
[1729000845563,0.0008,67818.0,67817.0,0.22206792]
[1729000845865,0.0008,67818.0,67817.0,0.29580592]
[1729000846070,0.0008,67818.0,67817.0,0.29780592]
[1729000848155,0.0008,67818.0,67817.0,0.65860592]
[1729000848367,0.0008,67818.0,67817.0,0.0024]
[1729000848961,0.0008,67818.0,67810.0,0.3608]
[1729000848962,0.0008,67818.0,67810.0,0.2632]
[1729000849263,0.0004,67811.0,67810.0,0.336946]
[1729000849460,0.0004,67811.0,67810.0,0.434546]
[1729000849669,0.0004,67811.0,67810.0,0.6560519]
[1729000850265,0.0004,67811.0,67810.0,0.6570519]
[1729000850461,0.0012,67818.0,67810.0,0.6570519]
[1729000850667,0.0004,67822.0,67821.0,0.073734]
[1729000850864,0.0004,67822.0,67821.0,0.074134]
[1729000851165,0.39,67836.0,67821.0,0.22214919]
[1729000851367,0.39,67836.0,67830.0,0.3608]
[1729000851565,0.39,67836.0,67835.0,0.0004]
[1729000852065,0.3608,67852.0,67841.0,0.073712]
[1729000852368,0.3608,67852.0,67842.0,0.97106025]
[1729000852758,0.7208,67864.0,67847.0,0.39]
[1729000853169,0.7208,67864.0,67851.0,0.073701]
[1729000853170,0.073692,67860.0,67851.0,0.073701]
[1729000853471,0.003,67852.0,67851.0,0.073701]
[1729000854066,0.001,67852.0,67851.0,0.29498556]
[1729000854259,0.3632,67864.0,67863.0,0.073688]
[1729000854464,0.0024,67864.0,67863.0,0.463688]
[1729000854770,0.003,67875.0,67863.0,0.463688]
[1729000854771,0.003,67875.0,67874.0,0.073676]
[1729000854966,0.003,67875.0,67874.0,0.0004]
[1729000855166,0.073687,67864.0,67863.0,0.0004]
[1729000855367,0.434486,67867.0,67866.0,0.073685]
[1729000855677,0.0034,67875.0,67870.0,0.07368]
[1729000855864,0.0034,67875.0,67867.0,0.22238338]
[1729000856172,0.0034,67875.0,67874.0,0.0004]
[1729000856371,0.0034,67875.0,67874.0,0.073676]
[1729000856568,0.07368,67872.0,67871.0,0.073679]
[1729000856775,0.0038,67875.0,67874.0,0.073676]
[1729000857071,0.0048,67875.0,67874.0,0.6564102]
[1729000857270,0.3608,67888.0,67874.0,0.6564102]
[1729000857271,0.3608,67888.0,67887.0,0.073662]
[1729000857476,0.3608,67888.0,67887.0,0.464062]
[1729000857673,0.3608,67888.0,67887.0,0.68531264]
[1729000857875,0.073634,67913.0,67887.0,0.68531264]
[1729000857876,0.3608,67894.0,67887.0,1.65357064]
[1729000858172,0.434455,67894.0,67893.0,0.0004]
[1729000859369,0.434455,67894.0,67893.0,0.0014]
[1729000859571,0.3608,67894.0,67893.0,0.21986023]
[1729000859761,0.0004,67894.0,67893.0,0.21986023]
[1729000859960,0.0004,67894.0,67893.0,0.464656]
[1729000860275,0.36259738,67901.0,67895.0,0.073654]
[1729000860479,0.36259738,67901.0,67895.0,0.074054]
[1729000860679,0.0017986,67909.0,67900.0,0.073648]
[1729000860875,0.0017986,67909.0,67906.0,0.3608]
[1729000861065,0.5061281,67907.0,67906.0,0.0004]
[1729000861272,0.073646,67902.0,67895.0,0.0004]
[1729000861470,0.074053,67896.0,67895.0,0.0004]
[1729000862178,0.074053,67896.0,67895.0,1e-06]
[1729000862471,0.073655,67894.0,67874.0,0.3612]
[1729000862777,0.073675,67875.0,67874.0,0.3612]
[1729000863176,0.0004,67875.0,67874.0,0.58252058]
[1729000863477,0.0004,67875.0,67874.0,1.25619658]
[1729000863662,0.0004,67886.0,67874.0,1.84631426]
[1729000863866,0.0004,67886.0,67885.0,0.074065]
[1729000864266,0.0004,67896.0,67895.0,0.073654]
[1729000864470,0.0004,67896.0,67895.0,0.434854]
[1729000864762,0.0004,67896.0,67895.0,0.65583967]
[1729000864967,0.074053,67896.0,67895.0,0.58218567]
[1729000865175,0.074053,67896.0,67895.0,0.3612]
[1729000865473,1.40304,67896.0,67885.0,0.0004]
[1729000865782,0.464063,67886.0,67874.0,0.0014]
[1729000865973,0.074075,67875.0,67874.0,0.0014]
[1729000866177,0.075075,67875.0,67874.0,0.3632]
[1729000866368,0.075075,67875.0,67874.0,0.3622]
[1729000866575,0.22724357,67875.0,67874.0,0.24424825]
[1729000866767,0.15373022,67875.0,67863.0,0.3612]
[1729000866968,0.15170178,67874.0,67863.0,0.3612]
[1729000867176,0.0004,67867.0,67863.0,0.3612]
[1729000867374,0.0004,67867.0,67866.0,1.064085]
[1729000867375,0.07022919,67867.0,67866.0,1.064085]
[1729000867574,0.3608,67892.0,67874.0,0.073676]
[1729000867776,0.073651,67898.0,67882.0,0.7508]
[1729000867981,0.00076,67904.0,67895.0,0.0004]
[1729000868283,0.0012,67896.0,67885.0,0.3612]
[1729000868473,0.0004,67886.0,67885.0,0.434865]
[1729000868673,0.0012,67896.0,67895.0,0.29521866]
[1729000868873,0.0012,67896.0,67895.0,0.33158]
[1729000869278,0.0012,67896.0,67895.0,0.55314466]
[1729000869484,0.0012,67896.0,67895.0,0.62679866]
[1729000869681,0.0012,67896.0,67895.0,0.55314466]
[1729000870173,0.0012,67896.0,67895.0,0.55414466]
[1729000870777,0.0012,67896.0,67895.0,0.62779866]
[1729000871085,0.074853,67896.0,67895.0,0.22296466]
[1729000871680,0.075253,67896.0,67895.0,0.002]
[1729000871885,0.075253,67896.0,67885.0,0.3612]
[1729000871886,0.7524,67896.0,67885.0,0.0004]
[1729000872086,0.7524,67896.0,67866.0,0.0004]
[1729000872087,0.073684,67867.0,67866.0,0.0004]
[1729000872270,0.434884,67867.0,67866.0,0.0004]
[1729000872481,0.434884,67867.0,67866.0,0.22153732]
[1729000872975,0.073687,67864.0,67848.0,0.3608]
[1729000873177,0.074087,67864.0,67863.0,1e-06]
[1729000873787,1.506167,67864.0,67863.0,1e-06]
[1729000874082,0.906167,67864.0,67863.0,1e-06]
[1729000874283,1.496167,67864.0,67863.0,1e-06]
[1729000874578,1.497167,67864.0,67863.0,0.001001]
[1729000874783,0.073712,67842.0,67839.0,0.073714]
[1729000874975,0.0004,67840.0,67837.0,0.073716]
[1729000875285,0.0004,67840.0,67839.0,0.073714]
[1729000875684,0.074114,67840.0,67839.0,0.22166588]
[1729000875884,0.0004,67840.0,67839.0,0.22166588]
[1729000876091,0.0004,67840.0,67837.0,0.22166588]
[1729000876385,0.074113,67840.0,67839.0,0.22166588]
[1729000876681,0.074113,67840.0,67839.0,0.001]
[1729000876873,0.074113,67840.0,67839.0,0.22357371]
[1729000877073,0.074113,67840.0,67839.0,0.22457371]
[1729000877279,0.0004,67840.0,67839.0,0.22457371]
[1729000877472,0.0004,67840.0,67839.0,0.29828771]
[1729000877881,0.074113,67840.0,67839.0,0.22457371]
[1729000878078,0.074113,67840.0,67839.0,0.22357371]
[1729000878285,0.077113,67840.0,67839.0,0.22457371]
[1729000879476,1.119353,67840.0,67839.0,0.22457371]
[1729000879786,0.463718,67836.0,67835.0,0.0004]
[1729000880086,0.824918,67836.0,67835.0,0.2213152]
[1729000880388,0.877158,67836.0,67835.0,0.2213152]
[1729000880582,0.434918,67836.0,67835.0,0.2213152]
[1729000880785,1.034918,67836.0,67835.0,0.2213152]
[1729000880977,1.491158,67836.0,67835.0,0.2223152]
[1729000881590,1.881158,67836.0,67835.0,0.2223152]
[1729000881785,0.07373,67825.0,67824.0,0.00012421]
[1729000881988,0.0004,67825.0,67824.0,0.00012421]
[1729000882293,0.07413,67825.0,67824.0,0.22051567]
[1729000882485,0.0004,67825.0,67824.0,0.22051567]
[1729000882787,0.07413,67825.0,67824.0,0.22051567]
[1729000883283,0.0144,67825.0,67824.0,0.68424667]
[1729000883486,0.0008,67836.0,67835.0,0.073719]
[1729000883878,0.0008,67836.0,67835.0,0.29409603]
[1729000884083,0.0008,67836.0,67835.0,0.22037703]
[1729000884276,0.435318,67836.0,67835.0,0.22037703]
[1729000884886,0.449318,67836.0,67835.0,0.22037703]
[1729000885189,0.461318,67836.0,67835.0,0.22137703]
[1729000885384,0.461318,67836.0,67835.0,0.0014]
[1729000885586,1.503558,67836.0,67835.0,0.0014]
[1729000885979,1.503558,67836.0,67821.0,0.0004]
[1729000885980,0.073733,67822.0,67821.0,0.0004]
[1729000886286,0.074133,67822.0,67821.0,0.0004]
[1729000886493,1.116453,67822.0,67821.0,0.0004]
[1729000887092,0.44236,67821.0,67794.0,0.39]
[1729000887277,0.073758,67799.0,67796.0,0.073761]
[1729000887477,0.073758,67799.0,67793.0,0.39]
[1729000887478,0.074158,67799.0,67793.0,0.39]
[1729000887677,0.074158,67799.0,67798.0,0.22189826]
[1729000887878,0.0004,67799.0,67798.0,0.68565726]
[1729000888687,0.3608,67816.0,67806.0,0.073749]
[1729000888985,0.3608,67816.0,67815.0,0.0004]
[1729000889188,0.9608,67816.0,67815.0,0.0004]
[1729000889391,1.40316,67816.0,67815.0,0.0004]
[1729000889589,0.80316,67816.0,67815.0,0.0004]
[1729000889781,0.3608,67816.0,67815.0,0.0004]
[1729000890185,0.0004,67818.0,67815.0,0.3612]
[1729000890386,0.0004,67818.0,67817.0,0.074138]
[1729000891082,0.0004,67818.0,67817.0,0.2947491]
[1729000891392,0.3608,67847.0,67835.0,0.463719]
[1729000891687,0.073708,67846.0,67835.0,0.464119]
[1729000891897,0.3608,67847.0,67835.0,0.464119]
[1729000892189,0.3608,67847.0,67835.0,0.68390624]
[1729000892387,0.434497,67855.0,67835.0,0.68390624]
[1729000892779,0.073698,67854.0,67835.0,0.68390624]
[1729000892982,0.0012,67836.0,67835.0,0.68390624]
[1729000893286,0.3608,67862.0,67852.0,0.0737]
[1729000893589,0.3608,67862.0,67854.0,0.39]
[1729000893789,0.3608,67862.0,67861.0,0.0004]
[1729000894293,0.434489,67862.0,67861.0,0.0004]
[1729000894686,0.3608,67862.0,67861.0,0.0004]
[1729000894893,0.0004,67864.0,67863.0,0.073688]
[1729000895092,0.434455,67894.0,67876.0,0.073674]
[1729000895296,0.3608,67887.0,67885.0,0.0004]
[1729000895491,0.074463,67886.0,67885.0,0.0004]
[1729000895888,0.0008,67886.0,67885.0,0.0004]
[1729000896082,0.0008,67886.0,67885.0,0.074065]
[1729000896289,0.0008,67886.0,67885.0,0.0004]
[1729000896595,0.0148,67886.0,67885.0,0.0004]
[1729000896783,0.0826095,67886.0,67885.0,0.074065]
[1729000896989,0.0148,67886.0,67885.0,0.0004]
[1729000897188,0.088463,67886.0,67885.0,0.0004]
[1729000897385,0.088463,67886.0,67871.0,0.39]
[1729000897386,1.04722717,67886.0,67873.0,0.073677]
[1729000897590,0.0004,67874.0,67873.0,0.073677]
[1729000897893,0.0004,67874.0,67873.0,0.073678]
[1729000898092,0.0004,67874.0,67867.0,0.30916093]
[1729000898293,0.0004,67874.0,67867.0,0.38284393]
[1729000898294,0.0004,67868.0,67867.0,0.38284393]
[1729000898697,0.0144,67874.0,67873.0,0.073678]
[1729000898885,0.0052,67886.0,67885.0,0.073665]
[1729000899085,0.3613,67907.0,67885.0,1.112]
[1729000899291,0.06766477,67895.0,67891.0,0.073657]
[1729000899493,0.3608,67899.0,67885.0,0.61208784]
[1729000899494,0.005,67886.0,67885.0,0.61208784]
[1729000899691,0.3608,67899.0,67895.0,0.073654]
[1729000899991,0.3613,67907.0,67895.0,0.29614787]
[1729000900188,0.3613,67907.0,67899.0,0.39]
[1729000900389,0.06812574,67906.0,67899.0,0.39]
[1729000900598,0.06812574,67905.0,67904.0,0.073644]
[1729000900796,0.06812574,67905.0,67900.0,0.22064971]
[1729000900985,0.3613,67907.0,67900.0,0.22064971]
[1729000900986,0.0004,67901.0,67900.0,0.39]
[1729000901190,0.0005,67907.0,67901.0,0.22064971]
[1729000901500,0.0005,67907.0,67905.0,0.073643]
[1729000901501,0.06827886,67906.0,67905.0,0.073643]
[1729000901690,0.06827886,67906.0,67905.0,0.39]
[1729000901891,0.073644,67904.0,67903.0,0.3608]
[1729000902295,0.434844,67904.0,67903.0,0.21973168]
[1729000902595,0.073646,67902.0,67901.0,0.001]
[1729000902802,0.073653,67896.0,67895.0,0.0014]
[1729000902988,0.50297011,67896.0,67895.0,0.0004]
[1729000903188,0.073663,67886.0,67878.0,0.073672]
[1729000903392,0.3608,67888.0,67887.0,0.073662]
[1729000903901,0.3608,67888.0,67887.0,0.29582513]
[1729000904196,0.0008,67896.0,67895.0,0.073654]
[1729000904397,0.0008,67896.0,67895.0,0.464054]
[1729000904605,0.0004,67902.0,67901.0,0.073647]
[1729000904895,0.0144,67902.0,67901.0,0.6872323]
[1729000905096,0.0005,67907.0,67903.0,0.073645]
[1729000905288,0.0005,67907.0,67903.0,0.074045]
[1729000905490,0.0005,67907.0,67903.0,0.2822303]
[1729000906398,0.0005,67907.0,67903.0,0.2682303]
[1729000906899,0.36,67937.0,67903.0,0.2682303]
[1729000906900,0.07362,67926.0,67904.0,0.4418]
[1729000907204,0.07362,67927.0,67925.0,0.0004]
[1729000907498,0.3608,67935.0,67926.0,0.0004]
[1729000907701,0.073593,67952.0,67929.0,0.0004]
[1729000908000,0.3608,67954.0,67951.0,0.3904]
[1729000908300,0.3608,67954.0,67953.0,0.0004]
[1729000908600,0.073573,67970.0,67953.0,0.52829937]